bitfinex-derivatives/quotes_SOLF0:USTF0_20250831
["timestamp","ask_amount","ask_price","bid_price","bid_amount"]
[1756657366056,120.9,203.97,203.87,7.78]
[1756657368554,120.9,203.97,203.87,11.89073874]
[1756657368855,120.84,203.97,203.9,7.78]
[1756657370255,120.84,203.97,203.9,11.89073874]
[1756657371154,120.84,203.97,203.9,7.78]
[1756657373156,120.84,203.97,203.91,3.0227312]
[1756657373455,3.0227312,204.03,203.92,7.78]
[1756657373656,120.88,204.02,203.92,7.78]
[1756657375051,0.85333856,204.04,203.92,7.78]
[1756657375351,120.9,204.04,203.95,7.78]
[1756657377750,120.9,204.04,203.96,4.44694448]
[1756657377958,120.9,204.04,203.97,4.44694448]
[1756657378157,120.9,204.04,203.98,4.44694448]
[1756657378358,120.9,204.04,203.99,4.44694448]
[1756657378554,120.9,204.04,204.0,4.44694448]
[1756657378753,120.9,204.04,204.01,4.44694448]
[1756657378954,120.9,204.04,204.02,4.44694448]
[1756657379154,120.9,204.04,204.03,4.44694448]
[1756657380653,329.7,204.05,204.03,4.44694448]
[1756657380853,329.7,204.05,204.04,4.44605353]
[1756657381053,450.54,204.05,204.04,4.44605353]
[1756657381560,329.7,204.05,204.04,4.44605353]
[1756657382059,450.52,204.05,204.04,4.44605353]
[1756657382661,450.54,204.05,204.04,4.44605353]
[1756657385457,450.48,204.05,204.04,4.44605353]
[1756657390365,450.48,204.05,204.04,4.47007509]
[1756657392064,329.7,204.05,204.04,4.47007509]
[1756657392463,450.48,204.05,204.04,4.47007509]
[1756657396164,120.78,204.05,204.04,4.47007509]
[1756657400771,120.78,204.05,203.95,7.13346994]
[1756657400965,3.0227312,204.08,203.97,7.92]
[1756657401164,120.64,204.07,203.99,7.92]
[1756657401469,120.64,204.07,204.0,4.43142359]
[1756657401673,120.64,204.07,204.01,4.43051868]
[1756657401968,120.64,204.07,204.02,4.43051868]
[1756657402169,120.64,204.07,204.03,4.43051868]
[1756657402369,120.64,204.07,204.04,4.43051868]
[1756657402563,120.64,204.07,204.05,4.43051868]
[1756657402761,120.64,204.07,204.06,4.43051868]
[1756657403973,120.66,204.07,204.06,4.43051868]
[1756657404371,120.66,204.07,204.06,4.43064497]
[1756657406574,120.68,204.07,204.06,4.43064497]
[1756657407174,120.64,204.07,204.06,4.43064497]
[1756657407376,3.0227312,204.11,204.06,4.43064497]
[1756657407577,120.64,204.1,204.07,4.43064497]
[1756657407878,120.64,204.1,204.08,4.43064497]
[1756657408078,120.64,204.1,204.09,4.43064497]
[1756657411580,120.64,204.1,204.09,4.43110622]
[1756657411981,120.64,204.1,204.0,7.92]
[1756657412183,120.64,204.1,204.01,4.4313553]
[1756657412184,3.0227312,204.07,204.01,4.4313553]
[1756657412485,3.0227312,204.07,204.02,4.4313553]
[1756657412678,3.0227312,204.07,203.96,7.92]
[1756657412679,3.0227312,204.07,204.03,4.4313553]
[1756657412880,3.0227312,204.07,204.04,4.4313553]
[1756657413083,3.0227312,204.07,204.05,4.4313553]
[1756657413383,3.0227312,204.07,204.06,4.4313553]
[1756657415585,123.6427312,204.07,204.06,4.4313553]
[1756657416484,3.0227312,204.07,204.06,4.4313553]
[1756657416687,123.6427312,204.07,204.06,4.4313553]
[1756657417386,3.0227312,204.07,204.06,4.4313553]
[1756657417588,123.6627312,204.07,204.06,4.4313553]
[1756657419789,120.64,204.07,204.06,4.4313553]
[1756657422103,120.64,204.07,204.06,4.44491261]
[1756657422501,120.64,204.07,204.06,4.4451246]
[1756657426703,126.62003068,204.07,203.97,7.64]
[1756657426902,3.0227312,204.05,203.97,7.64]
[1756657427196,120.62,204.04,203.97,7.64]
[1756657429006,3.0227312,204.05,203.97,7.64]
[1756657429304,24.92,204.04,203.97,7.64]
[1756657429501,3.0227312,204.05,203.97,7.64]
[1756657429805,24.92,204.04,203.97,11.75073874]
[1756657430105,24.92,204.03,203.98,7.64]
[1756657430402,43.12,204.02,203.98,7.64]
[1756657431102,3.0227312,204.08,203.98,7.64]
[1756657431405,120.62,204.07,203.98,7.64]
[1756657431903,3.0227312,204.08,203.98,7.64]
[1756657432101,120.62,204.07,203.98,7.64]
[1756657434207,3.0227312,204.08,203.98,7.64]
[1756657434401,120.62,204.06,203.98,7.64]
[1756657440105,120.62,204.06,204.0,1.93777166]
[1756657440302,120.62,204.06,204.0,9.57777166]
[1756657441507,120.62,204.06,204.0,7.64]
[1756657441809,120.62,204.06,204.0,9.57777166]
[1756657448008,1.93777166,204.07,204.0,9.57777166]
[1756657448212,120.6,204.05,204.01,7.42]
[1756657448409,120.6,204.05,204.0,1.93777166]
[1756657448608,120.6,204.05,204.01,7.42]
[1756657449614,1.93777166,204.09,204.02,1.93777166]
[1756657449913,120.6,204.08,204.02,1.93777166]
[1756657450807,120.6,204.08,204.03,4.41990301]
[1756657451007,120.6,204.08,204.04,4.41990301]
[1756657451213,120.6,204.08,204.05,4.41990301]
[1756657451414,120.6,204.08,204.06,4.41990301]
[1756657451616,120.6,204.08,204.07,4.41990301]
[1756657452715,120.6,204.08,204.02,1.93777166]
[1756657452916,120.6,204.08,204.03,4.59774917]
[1756657453217,1.93777166,204.07,204.04,4.59774917]
[1756657453416,1.93777166,204.07,204.05,4.59774917]
[1756657453616,1.93777166,204.07,204.06,4.59774917]
[1756657456913,122.53777166,204.08,204.06,4.59774917]
[1756657457118,122.53777166,204.08,204.07,4.59774917]
[1756657457315,120.6,204.08,204.07,4.59774917]
[1756657457517,122.53777166,204.08,204.07,4.59774917]
[1756657462621,123.03777166,204.08,204.07,4.59774917]
[1756657462821,123.03777166,204.08,203.97,9.35777166]
[1756657463027,1.93777166,204.04,203.97,9.35777166]
[1756657463221,120.56,204.03,203.97,7.42]
[1756657465623,120.56,204.03,203.98,1.93777166]
[1756657465823,120.56,204.03,203.99,7.42]
[1756657466123,1.93777166,204.06,203.99,7.42]
[1756657466324,1.93777166,204.06,203.93,109.84287109]
[1756657466325,28.28,204.08,204.02,1.93777166]
[1756657466523,98.8,204.07,204.03,1.93777166]
[1756657466717,98.8,204.07,204.04,7.42]
[1756657466922,98.8,204.07,204.03,1.93777166]
[1756657467124,98.8,204.07,204.05,7.42]
[1756657467324,1.93777166,204.1,204.06,4.53086616]
[1756657467525,1.93777166,204.12,204.07,6.46863782]
[1756657467724,120.56,204.11,204.09,7.42]
[1756657467927,120.56,204.11,204.1,4.53086616]
[1756657468630,120.54,204.13,204.11,7.42]
[1756657468830,120.54,204.13,204.12,4.53086616]
[1756657472635,329.46,204.14,204.12,4.53086616]
[1756657472825,120.54,204.13,204.09,7.42]
[1756657473029,120.54,204.13,204.1,4.53656202]
[1756657473229,120.54,204.13,204.11,4.53656202]
[1756657473530,120.54,204.13,204.12,4.53656202]
[1756657474034,120.54,204.13,204.09,7.42]
[1756657474236,120.54,204.13,204.1,4.53567673]
[1756657474429,120.54,204.13,204.11,4.53567673]
[1756657474629,120.54,204.13,204.12,4.53567673]
[1756657475634,329.46,204.14,204.12,4.53567673]
[1756657475834,120.52,204.13,204.09,7.42]
[1756657476033,120.52,204.13,204.1,4.53388562]
[1756657476231,120.52,204.13,204.11,4.53388562]
[1756657476535,120.52,204.13,204.12,4.53388562]
[1756657479140,121.0,204.13,204.12,4.53388562]
[1756657479336,121.0,204.13,204.04,7.9]
[1756657479633,123.54578616,204.13,204.05,4.53166803]
[1756657479840,123.54578616,204.13,204.06,4.53166803]
[1756657480131,3.02578616,204.1,204.0,7.9]
[1756657480333,120.5,204.09,204.0,7.9]
[1756657484042,120.5,204.08,204.0,7.9]
[1756657486241,3.02578616,204.13,204.0,7.9]
[1756657486542,120.5,204.12,204.0,7.9]
[1756657486742,120.5,204.11,204.0,7.9]
[1756657488048,3.02578616,204.1,204.0,7.9]
[1756657488847,3.02578616,204.07,203.96,7.9]
[1756657489147,24.88,204.06,203.96,7.9]
[1756657489949,3.02578616,204.07,203.96,7.9]
[1756657490241,43.54,204.05,203.96,7.9]
[1756657490646,60.18,204.04,203.96,7.9]
[1756657491146,3.02578616,204.07,203.96,7.9]
[1756657491346,6.58,204.06,203.96,7.9]
[1756657492446,26.12,204.05,203.96,7.9]
[1756657492845,43.6,204.04,203.96,7.9]
[1756657493449,70.3,204.03,203.96,7.9]
[1756657499145,70.3,204.03,203.94,3.02578616]
[1756657500450,70.3,204.03,203.93,117.74287109]
[1756657501650,3.02578616,204.04,203.93,117.74287109]
[1756657501851,19.22,204.03,203.93,117.74287109]
[1756657502053,3.02578616,204.04,203.94,7.9]
[1756657502250,19.26,204.03,203.94,7.9]
[1756657505153,22.28578616,204.03,203.9,10.92578616]
[1756657505351,22.28578616,204.03,203.9,7.9]
[1756657505352,3.02578616,204.0,203.9,7.9]
[1756657505552,3.02578616,204.02,203.9,7.9]
[1756657505745,4.2,204.01,203.9,10.92578616]
[1756657506551,3.02578616,204.02,203.91,7.9]
[1756657506853,4.08,204.01,203.94,7.9]
[1756657507053,3.02578616,204.05,203.94,7.9]
[1756657507354,18.6,204.04,203.94,7.9]
[1756657508150,3.02578616,204.05,203.94,7.9]
[1756657508456,8.5,204.04,203.94,7.9]
[1756657511554,3.02578616,204.02,203.94,7.9]
[1756657512553,3.02578616,204.02,203.9,3.02578616]
[1756657512752,3.02578616,204.02,203.9,10.50578616]
[1756657513856,3.02578616,204.02,203.91,7.48]
[1756657514556,12.16,204.01,203.91,7.48]
[1756657518158,15.3,204.0,203.91,7.48]
[1756657521062,5.48003068,204.08,203.91,7.48]
[1756657521262,3.02578616,204.01,203.91,7.48]
[1756657524561,66.36,204.0,203.91,7.48]
[1756657533066,3.02578616,204.01,203.91,7.48]
[1756657533371,81.24,204.0,203.92,7.48]
[1756657533667,120.46,204.0,203.92,11.58500141]
[1756657533868,329.54,204.05,203.93,7.48]
[1756657534069,120.46,204.04,203.94,7.48]
[1756657535268,332.56578616,204.05,203.94,7.48]
[1756657535571,332.56578616,204.05,203.96,7.48]
[1756657535572,120.46,204.04,203.96,7.48]
[1756657535965,123.48578616,204.04,203.96,7.48]
[1756657536564,123.48578616,204.04,203.97,4.51432315]
[1756657536765,123.48578616,204.04,203.98,4.51432315]
[1756657536965,123.48578616,204.04,203.99,4.51432315]
[1756657537270,123.48578616,204.04,204.0,4.51432315]
[1756657537472,123.48578616,204.04,204.01,4.51432315]
[1756657537675,123.48578616,204.04,204.02,4.51432315]
[1756657537877,123.48578616,204.04,204.03,4.51432315]
[1756657540775,120.46,204.04,204.03,4.51432315]
[1756657541081,123.48578616,204.04,204.03,4.51432315]
[1756657542680,123.98578616,204.04,203.92,11.90500141]
[1756657542885,3.02578616,204.01,203.92,7.8]
[1756657543184,120.42,204.0,203.92,7.8]
[1756657545080,3.02578616,203.98,203.89,4.10500141]
[1756657545381,3.02578616,203.98,203.88,11.90500141]
[1756657548178,3.02578616,203.98,203.88,7.8]
[1756657548785,3.02578616,203.95,203.88,7.8]
[1756657549088,120.42,203.94,203.88,7.8]
[1756657550990,5.48003068,204.0,203.88,7.8]
[1756657551186,3.02578616,203.98,203.88,7.8]
[1756657551682,3.02578616,203.98,203.89,4.44499674]
[1756657551886,3.02578616,203.98,203.9,4.44499674]
[1756657552090,3.02578616,203.98,203.91,4.44499674]
[1756657552285,3.02578616,203.98,203.92,4.44499674]
[1756657552587,3.02578616,203.98,203.93,4.44499674]
[1756657552787,3.02578616,203.98,203.94,4.44499674]
[1756657552989,3.02578616,203.98,203.95,4.44499674]
[1756657553188,3.02578616,203.98,203.96,4.44499674]
[1756657553390,120.42,203.99,203.97,4.44499674]
[1756657553595,3.02578616,203.98,203.91,7.8]
[1756657553892,3.02578616,203.98,203.92,4.44397742]
[1756657554084,3.02578616,203.98,203.93,4.44397742]
[1756657554286,3.02578616,203.98,203.94,4.44397742]
[1756657554488,3.02578616,203.95,203.87,7.8]
[1756657554789,3.02578616,203.95,203.88,4.44383817]
[1756657554988,3.02578616,203.95,203.89,4.44383817]
[1756657555182,3.02578616,203.95,203.87,7.8]
[1756657555183,3.02578616,203.95,203.9,4.44383817]
[1756657555388,3.02578616,203.95,203.91,4.44383817]
[1756657555587,3.02578616,203.95,203.92,4.44383817]
[1756657555788,3.02578616,203.95,203.93,4.44383817]
[1756657555978,3.02578616,203.95,203.94,4.44383817]
[1756657556892,3.02578616,203.95,203.87,7.8]
[1756657557290,3.02578616,203.93,203.87,7.8]
[1756657557590,120.42,203.92,203.82,7.13078757]
[1756657557789,120.42,203.92,203.83,7.8]
[1756657561190,120.42,203.92,203.84,3.02578616]
[1756657561390,120.42,203.92,203.85,7.8]
[1756657561795,120.42,203.95,203.88,7.8]
[1756657561993,120.42,203.96,203.88,7.8]
[1756657562500,120.42,203.96,203.91,7.8]
[1756657562791,3.02578616,204.03,203.91,7.8]
[1756657562996,120.42,204.02,203.91,7.8]
[1756657566392,3.02578616,204.0,203.91,7.8]
[1756657566794,123.44578616,204.02,203.91,7.8]
[1756657568793,3.02578616,203.99,203.91,7.8]
[1756657568999,3.02578616,203.99,203.92,4.39688333]
[1756657569199,3.02578616,203.99,203.93,4.39688333]
[1756657569399,3.02578616,203.99,203.94,4.39688333]
[1756657569601,3.02578616,203.99,203.95,4.39688333]
[1756657569800,3.02578616,203.99,203.96,4.39688333]
[1756657570102,3.02578616,203.99,203.97,4.39688333]
[1756657570293,3.02578616,203.98,203.87,7.6]
[1756657570601,3.02578616,203.98,203.88,4.39695908]
[1756657570801,3.02578616,203.98,203.89,4.39695908]
[1756657571002,3.02578616,203.98,203.87,7.6]
[1756657573400,120.42,204.02,203.87,7.6]
[1756657573606,3.02578616,203.98,203.87,7.6]
[1756657585411,125.90003068,204.02,203.87,7.6]
[1756657585607,3.02578616,203.97,203.87,7.6]
[1756657587012,3.02578616,203.96,203.87,7.6]
[1756657587510,3.02578616,203.96,203.87,4.10500141]
[1756657587711,3.02578616,203.96,203.88,7.6]
[1756657590313,3.02578616,204.01,203.9,4.10500141]
[1756657590509,23.64,204.0,203.91,7.6]
[1756657590916,23.64,204.0,203.92,7.6]
[1756657591119,23.64,204.0,203.93,4.42372506]
[1756657591313,23.64,204.0,203.94,4.42372506]
[1756657591514,23.64,204.0,203.96,7.6]
[1756657591713,23.64,204.0,203.97,12.02372506]
[1756657592013,23.64,204.0,203.98,4.42372506]
[1756657592214,23.64,204.0,203.99,4.42372506]
[1756657594521,23.64,204.0,203.99,12.02372506]
[1756657599214,23.64,204.0,203.99,12.01700728]
[1756657602827,329.54,204.05,204.0,7.59]
[1756657603024,329.54,204.05,204.02,7.59]
[1756657603222,329.54,204.05,204.03,12.00700728]
[1756657603526,329.54,204.05,204.04,4.41700728]
[1756657606531,120.3,204.06,204.04,12.00700728]
[1756657606732,120.3,204.06,204.05,12.00700728]
[1756657607622,120.3,204.06,204.05,4.41700728]
[1756657608027,120.3,204.06,204.05,12.00700728]
[1756657608727,120.3,204.06,204.05,4.41700728]
[1756657609629,329.5,204.17,204.05,4.39192791]
[1756657609933,3.02578616,204.13,204.06,4.39192791]
[1756657610134,3.02578616,204.13,204.07,4.39192791]
[1756657610335,3.02578616,204.13,204.08,4.39192791]
[1756657610531,3.02578616,204.13,204.09,4.39009982]
[1756657610730,3.02578616,204.13,204.1,4.39009982]
[1756657610932,3.02578616,204.13,204.04,7.59]
[1756657611133,3.02578616,204.13,204.05,4.39009982]
[1756657611334,3.02578616,204.13,204.06,4.39009982]
[1756657611634,3.02578616,204.13,204.07,4.39009982]
[1756657611834,3.02578616,204.13,204.08,4.39009982]
[1756657612132,3.02578616,204.13,204.04,7.59]
[1756657612133,3.02578616,204.13,204.09,4.39009982]
[1756657612332,3.02578616,204.13,204.04,7.59]
[1756657612635,3.02578616,204.13,204.05,4.38744775]
[1756657612826,3.02578616,204.13,204.06,4.38744775]
[1756657613032,3.02578616,204.13,204.07,4.38744775]
[1756657613226,3.02578616,204.13,204.08,4.38744775]
[1756657613436,3.02578616,204.13,204.09,4.38744775]
[1756657613637,3.02578616,204.13,204.06,7.59]
[1756657613833,120.26,204.16,204.07,4.385713]
[1756657614135,3.02578616,204.13,204.08,4.385713]
[1756657614336,3.02578616,204.13,204.09,4.385713]
[1756657614538,3.02578616,204.13,204.02,7.59]
[1756657614737,3.02578616,204.13,204.04,7.59]
[1756657614945,3.02578616,204.13,204.05,4.38459488]
[1756657615146,3.02578616,204.13,204.06,4.38459488]
[1756657615341,3.02578616,204.13,204.07,4.38459488]
[1756657615641,3.02578616,204.1,204.01,7.59]
[1756657615847,120.24,204.09,204.02,4.38405946]
[1756657616145,120.24,204.09,204.01,7.59]
[1756657616146,120.24,204.09,204.03,4.38405946]
[1756657616346,120.24,204.09,204.04,4.38405946]
[1756657616641,3.02578616,204.07,203.98,7.59]
[1756657616843,3.02578616,204.07,203.99,4.38424734]
[1756657617144,3.02578616,204.07,204.0,4.38424734]
[1756657617345,3.02578616,204.07,204.01,4.38424734]
[1756657617546,3.02578616,204.07,204.02,4.38424734]
[1756657617746,3.02578616,204.07,204.03,4.38424734]
[1756657617946,3.02578616,204.07,204.04,4.38424734]
[1756657618147,3.02578616,204.07,204.05,4.38424734]
[1756657618340,3.02578616,204.07,203.98,7.59]
[1756657618541,3.02578616,204.07,203.99,4.38482521]
[1756657618739,3.02578616,204.07,204.0,4.38482521]
[1756657618947,3.02578616,204.07,204.01,4.38482521]
[1756657619147,3.02578616,204.07,204.02,4.38482521]
[1756657619347,3.02578616,204.07,204.03,4.38482521]
[1756657619644,3.02578616,204.07,204.04,4.38482521]
[1756657619848,3.02578616,204.07,203.98,7.59]
[1756657620444,3.02578616,204.07,203.99,4.38530859]
[1756657620649,3.02578616,204.07,204.0,4.38530859]
[1756657620846,3.02578616,204.07,204.01,4.38530859]
[1756657621153,3.02578616,204.07,204.02,11.97547023]
[1756657621350,3.02578616,204.07,204.03,4.38547023]
[1756657621547,3.02578616,204.07,204.04,4.38547023]
[1756657621752,3.02578616,204.07,204.02,7.59]
[1756657621946,3.02578616,204.07,204.03,4.38566903]
[1756657622146,3.02578616,204.07,204.04,4.38566903]
[1756657622346,3.02578616,204.07,204.02,7.59]
[1756657622546,3.02578616,204.07,204.03,4.38623709]
[1756657622750,3.02578616,204.07,204.04,4.38623709]
[1756657623050,3.02578616,204.07,204.05,4.38611223]
[1756657623251,3.02578616,204.07,204.02,7.59]
[1756657623452,3.02578616,204.07,204.03,4.38682439]
[1756657623749,3.02578616,204.07,204.04,4.38682439]
[1756657623951,3.02578616,204.07,204.05,4.38682439]
[1756657624145,3.02578616,204.07,204.02,7.59]
[1756657624344,3.02578616,204.07,204.03,4.38682439]
[1756657624553,3.02578616,204.07,204.04,4.38682439]
[1756657624849,3.02578616,204.07,204.05,4.38682439]
[1756657625049,3.02578616,204.07,204.02,7.59]
[1756657625251,3.02578616,204.07,204.03,4.38753716]
[1756657625442,3.02578616,204.07,204.04,4.38753716]
[1756657625649,3.02578616,204.07,204.05,4.38753716]
[1756657625846,3.02578616,204.07,204.02,7.59]
[1756657626049,3.02578616,204.07,204.03,4.38833885]
[1756657626352,3.02578616,204.07,204.04,4.38833885]
[1756657626552,3.02578616,204.07,204.05,4.38833885]
[1756657626756,120.2,204.07,204.06,4.38908948]
[1756657626954,120.2,204.07,204.06,11.97908948]
[1756657627148,120.2,204.07,204.06,4.38908948]
[1756657628350,120.2,204.09,204.06,4.38908948]
[1756657628546,120.2,204.11,204.07,4.38908948]
[1756657628746,120.2,204.11,204.09,7.82]
[1756657628948,120.2,204.11,204.03,7.82]
[1756657629150,120.2,204.11,204.05,7.82]
[1756657629453,120.2,204.11,204.06,4.3905395]
[1756657629648,120.2,204.11,204.08,7.82]
[1756657629848,120.2,204.11,204.09,4.39144462]
[1756657630046,120.2,204.11,204.1,4.39144462]
[1756657630551,120.2,204.11,204.1,4.39250314]
[1756657640569,120.2,204.11,204.1,4.39979098]
[1756657641265,120.2,204.11,204.01,7.13078757]
[1756657641568,120.2,204.11,204.03,7.82]
[1756657641767,120.2,204.11,204.05,7.82]
[1756657641967,120.2,204.11,204.07,7.82]
[1756657642169,329.5,204.17,204.09,7.82]
[1756657642468,120.16,204.16,204.1,4.40075727]
[1756657642671,120.16,204.16,204.11,4.40075727]
[1756657642870,120.16,204.16,204.12,4.40075727]
[1756657643169,120.16,204.16,204.13,4.40075727]
[1756657643369,120.16,204.16,204.14,4.40075727]
[1756657643566,120.16,204.16,204.15,4.40075727]
[1756657644665,329.5,204.17,204.15,4.40075727]
[1756657644866,329.5,204.17,204.16,4.40075727]
[1756657645075,449.64,204.17,204.16,4.40075727]
[1756657651086,449.64,204.17,204.06,7.13078757]
[1756657651285,449.64,204.17,204.07,12.23168803]
[1756657651484,449.64,204.17,204.09,7.82]
[1756657651685,449.64,204.17,204.11,7.82]
[1756657651885,449.64,204.17,204.13,7.82]
[1756657652183,449.64,204.17,204.14,4.41168803]
[1756657652485,449.64,204.17,204.15,4.41168803]
[1756657652685,449.64,204.17,204.16,4.41168803]
[1756657658587,449.64,204.17,204.11,7.87]
[1756657661890,449.64,204.17,204.12,1.93559321]
[1756657662091,449.64,204.17,204.12,9.80559321]
[1756657662388,449.64,204.17,204.12,1.93559321]
[1756657662592,449.64,204.17,204.12,9.80559321]
[1756657662792,449.64,204.17,204.12,7.87]
[1756657662990,449.64,204.17,204.12,9.80559321]
[1756657664391,449.64,204.17,204.12,1.93559321]
[1756657664698,449.64,204.17,204.12,9.80559321]
[1756657664894,449.64,204.17,204.13,7.87]
[1756657665096,120.14,204.17,204.13,7.87]
[1756657674607,120.14,204.17,204.12,1.93559321]
[1756657674808,120.14,204.17,204.12,9.80559321]
[1756657675003,120.14,204.17,204.12,1.93559321]
[1756657675308,120.14,204.17,204.13,7.87]
[1756657678906,120.14,204.17,204.14,9.80559321]
[1756657679409,120.14,204.17,204.11,7.87]
[1756657679610,120.14,204.17,204.13,9.80559321]
[1756657680611,120.0,204.23,204.15,1.93559321]
[1756657680911,120.0,204.23,204.18,1.93559321]
[1756657681109,120.0,204.23,204.19,4.56062689]
[1756657681310,120.0,204.23,204.2,4.56062689]
[1756657681511,120.0,204.23,204.21,4.56062689]
[1756657681812,120.0,204.23,204.18,1.93559321]
[1756657682013,120.0,204.23,204.19,4.5499933]
[1756657682214,120.0,204.23,204.2,4.5499933]
[1756657682405,1.93559321,204.22,204.21,4.5499933]
[1756657682911,2.41559321,204.22,204.08,9.80559321]
[1756657683111,1.93559321,204.15,204.08,9.80559321]
[1756657683314,119.98,204.14,204.08,9.80559321]
[1756657683812,119.98,204.14,204.08,7.87]
[1756657684911,119.98,204.14,204.05,111.96990137]
[1756657685214,119.98,204.14,204.05,107.86489996]
[1756657685415,3.02574324,204.12,204.05,107.86489996]
[1756657688410,3.02574324,204.09,204.01,7.58]
[1756657690918,5.48003068,204.15,204.01,7.58]
[1756657691125,29.04574324,204.14,204.03,7.58]
[1756657691318,7.76,204.13,204.03,7.58]
[1756657691818,3.02574324,204.14,204.03,7.58]
[1756657692022,12.32,204.13,204.03,7.58]
[1756657693019,3.02574324,204.14,204.03,7.58]
[1756657693224,3.9,204.13,204.05,3.02574324]
[1756657693423,3.9,204.12,204.06,7.58]
[1756657696324,8.94,204.13,204.06,7.58]
[1756657696627,8.94,204.13,204.09,7.58]
[1756657696827,8.94,204.13,204.08,3.02574324]
[1756657697024,8.94,204.13,204.09,7.58]
[1756657697328,8.94,204.13,204.08,3.02574324]
[1756657697725,8.94,204.13,204.09,7.58]
[1756657698330,8.94,204.13,204.08,3.02574324]
[1756657698524,8.94,204.13,204.09,7.58]
[1756657698832,8.94,204.13,204.08,3.02574324]
[1756657699229,8.94,204.13,204.09,7.58]
[1756657699924,8.94,204.13,204.08,3.02574324]
[1756657700122,8.94,204.13,204.09,7.58]
[1756657700328,8.94,204.13,204.08,3.02574324]
[1756657700729,8.94,204.13,204.09,7.58]
[1756657701433,8.94,204.13,204.08,3.02574324]
[1756657702028,8.94,204.13,204.09,7.58]
[1756657702225,8.94,204.13,204.08,3.02574324]
[1756657702428,8.94,204.13,204.09,7.58]
[1756657702625,3.02574324,204.18,204.09,7.58]
[1756657702830,20.22,204.17,204.09,7.58]
[1756657712742,32.26,204.18,204.11,7.58]
[1756657719337,3.02574324,204.14,204.03,15.03780307]
[1756657719544,3.02574324,204.14,204.03,10.92574324]
[1756657719745,32.26,204.18,204.01,108.42023031]
[1756657719746,3.02574324,204.11,204.01,108.42023031]
[1756657720041,4.6,204.1,204.01,108.42023031]
[1756657722652,4.6,204.1,204.02,7.9]
[1756657730060,7.62574324,204.1,204.02,7.9]
[1756657733664,20.1,204.09,204.02,7.9]
[1756657734966,34.7,204.1,204.02,7.9]
[1756657740170,3.02574324,204.14,204.02,7.9]
[1756657740470,119.92,204.13,204.05,7.9]
[1756657747572,119.92,204.12,204.05,7.9]
[1756657748174,332.34574324,204.16,204.05,7.9]
[1756657748476,329.32,204.16,204.07,3.02574324]
[1756657748674,329.32,204.16,204.08,7.61]
[1756657748675,119.92,204.15,204.08,7.61]
[1756657749180,119.92,204.14,204.08,7.61]
[1756657750081,119.92,204.14,204.1,3.02574324]
[1756657750276,329.32,204.16,204.1,3.02574324]
[1756657750481,119.9,204.15,204.1,3.02574324]
[1756657750680,119.9,204.15,204.11,7.61]
[1756657751781,119.9,204.15,204.1,3.02574324]
[1756657752780,119.9,204.15,204.11,7.61]
[1756657752978,119.9,204.15,204.1,3.02574324]
[1756657753483,119.9,204.15,204.11,7.61]
[1756657754379,3.02574324,204.25,204.13,3.02574324]
[1756657754583,119.88,204.24,204.15,7.61]
[1756657754884,119.88,204.24,204.16,4.49762846]
[1756657755079,119.88,204.24,204.17,4.49762846]
[1756657755383,119.88,204.24,204.18,4.49762846]
[1756657755683,119.88,204.24,204.19,4.4963191]
[1756657755885,119.88,204.24,204.2,4.4963191]
[1756657756083,119.88,204.24,204.15,7.61]
[1756657756084,119.88,204.24,204.21,4.4963191]
[1756657756379,119.88,204.24,204.22,4.49517598]
[1756657756577,119.88,204.24,204.15,7.61]
[1756657756777,119.88,204.24,204.16,4.49517598]